[Event "*** SCC Grand Prix: Titled Tuesday Blitz"]
[Site "Chess.com"]
[Date "2020.09.08"]
[Round "10"]
[White "GM_dmitrij"]
[Black "Konavets"]
[Result "0-1"]
[WhiteElo "2923"]
[BlackElo "3074"]
[TimeControl "180+1"]
[EndTime "11:59:23 PDT"]
[Termination "Konavets won by resignation"]

1. e4 {[%clk 0:03:00.9]} 1... c6 {[%clk 0:02:59.2]} 2. d4 {[%clk 0:03:00.5]}
2... d5 {[%clk 0:02:59.6]} 3. e5 {[%clk 0:03:00.8]} 3... Bf5 {[%clk 0:02:59.7]}
4. h4 {[%clk 0:03:01.1]} 4... h6 {[%clk 0:02:58.8]} 5. g4 {[%clk 0:03:00.7]}
5... Be4 {[%clk 0:02:59.3]} 6. f3 {[%clk 0:03:01]} 6... Bh7 {[%clk 0:02:59.9]}
7. e6 {[%clk 0:03:01.5]} 7... Qd6 {[%clk 0:03:00.6]} 8. exf7+ {[%clk 0:02:59.8]}
8... Kxf7 {[%clk 0:03:01.5]} 9. f4 {[%clk 0:03:00.7]} 9... Nf6 {[%clk
0:03:00.5]} 10. Nf3 {[%clk 0:02:58.5]} 10... Nxg4 {[%clk 0:03:00.9]} 11. h5
{[%clk 0:02:58.9]} 11... c5 {[%clk 0:02:54.4]} 12. Bh3 {[%clk 0:02:56.2]} 12...
Nf6 {[%clk 0:02:50.2]} 13. Ne5+ {[%clk 0:02:55.2]} 13... Ke8 {[%clk 0:02:45]}
14. Nc3 {[%clk 0:02:44.2]} 14... Nc6 {[%clk 0:02:34.1]} 15. Be3 {[%clk
0:02:08.3]} 15... cxd4 {[%clk 0:02:13]} 16. Bxd4 {[%clk 0:02:09.2]} 16... Qb4
{[%clk 0:02:13.1]} 17. Nxc6 {[%clk 0:02:05.8]} 17... bxc6 {[%clk 0:02:14]} 18.
O-O {[%clk 0:02:01.8]} 18... e6 {[%clk 0:01:43.5]} 19. Bxe6 {[%clk 0:01:50]}
19... Bc5 {[%clk 0:01:42.8]} 20. Ne2 {[%clk 0:01:42.2]} 20... Be4 {[%clk
0:01:32.2]} 21. c3 {[%clk 0:01:32.6]} 21... Qb6 {[%clk 0:01:31.8]} 22. b4 {[%clk
0:01:20]} 22... Bxd4+ {[%clk 0:01:32.1]} 23. Nxd4 {[%clk 0:01:20.5]} 23... Ke7
{[%clk 0:01:20.3]} 24. Kh2 {[%clk 0:01:19]} 24... Qc7 {[%clk 0:01:12.7]} 25. Qe2
{[%clk 0:01:00.3]} 25... a5 {[%clk 0:01:05]} 26. Rf2 {[%clk 0:00:54.8]} 26...
axb4 {[%clk 0:00:56.7]} 27. Rg1 {[%clk 0:00:54.8]} 27... Kd8 {[%clk 0:00:37.5]}
28. cxb4 {[%clk 0:00:47.6]} 28... c5 {[%clk 0:00:24.5]} 29. bxc5 {[%clk
0:00:40.1]} 29... Qxc5 {[%clk 0:00:25.4]} 30. Qd2 {[%clk 0:00:39.5]} 30... Ra7
{[%clk 0:00:22.3]} 31. Rc1 {[%clk 0:00:38.2]} 31... Qd6 {[%clk 0:00:19]} 32.
Rc8+ {[%clk 0:00:31.7]} 32... Ke7 {[%clk 0:00:16.7]} 33. Rxh8 {[%clk 0:00:30.1]}
33... Rb7 {[%clk 0:00:07.2]} 34. Rc8 {[%clk 0:00:23.2]} 34... Rb1 {[%clk
0:00:05.9]} 35. Rc1 {[%clk 0:00:21.1]} 35... Qb6 {[%clk 0:00:03.3]} 36. Rxb1
{[%clk 0:00:11.3]} 36... Qxb1 {[%clk 0:00:04.2]} 37. Nf3 {[%clk 0:00:11.8]}
37... Kxe6 {[%clk 0:00:03.7]} 38. Kg3 {[%clk 0:00:07.7]} 38... Nxh5+ {[%clk
0:00:03.9]} 39. Kg2 {[%clk 0:00:07.9]} 39... Kf5 {[%clk 0:00:04.6]} 40. Kh2
{[%clk 0:00:06.4]} 40... Bxf3 {[%clk 0:00:04.5]} 41. Rxf3 {[%clk 0:00:07.1]}
41... Qb7 {[%clk 0:00:02.5]} 42. Qd3+ {[%clk 0:00:06.7]} 42... Kf6 {[%clk
0:00:03.1]} 43. a4 {[%clk 0:00:07.4]} 43... Kf7 {[%clk 0:00:03]} 44. Rf2 {[%clk
0:00:07]} 44... Nf6 {[%clk 0:00:03.4]} 45. a5 {[%clk 0:00:06.9]} 45... Ng4+
{[%clk 0:00:03.2]} 46. Kg3 {[%clk 0:00:06.5]} 46... Nxf2 {[%clk 0:00:04.1]} 47.
Kxf2 {[%clk 0:00:05.8]} 47... Qa7+ {[%clk 0:00:04.6]} 48. Kg3 {[%clk 0:00:03]}
48... Qxa5 {[%clk 0:00:04.9]} 49. Qf5+ {[%clk 0:00:03.9]} 49... Ke7 {[%clk
0:00:03.9]} 50. Qe5+ {[%clk 0:00:04.3]} 50... Kd8 {[%clk 0:00:03.4]} 51. Qd6+
{[%clk 0:00:03.7]} 51... Kc8 {[%clk 0:00:03.2]} 52. Qe6+ {[%clk 0:00:03]} 52...
Kb8 {[%clk 0:00:02.9]} 53. Qg8+ {[%clk 0:00:02.6]} 53... Kb7 {[%clk 0:00:01.8]}
54. Qxg7+ {[%clk 0:00:03.5]} 54... Qc7 {[%clk 0:00:02.3]} 55. Qb2+ {[%clk
0:00:03.2]} 55... Kc6 {[%clk 0:00:02.6]} 56. Qc3+ {[%clk 0:00:03.3]} 56... Kd7
{[%clk 0:00:03.2]} 57. Qg7+ {[%clk 0:00:03.3]} 57... Kc6 {[%clk 0:00:03.7]} 58.
Qxh6+ {[%clk 0:00:03.4]} 58... Qd6 {[%clk 0:00:04.3]} 59. Qh8 {[%clk 0:00:02.5]}
59... d4 {[%clk 0:00:04.6]} 60. Kf3 {[%clk 0:00:02.9]} 60... Qd5+ {[%clk
0:00:04.9]} 61. Kf2 {[%clk 0:00:02.6]} 61... Qe4 {[%clk 0:00:05.1]} 62. Qf6+
{[%clk 0:00:02]} 62... Kd5 {[%clk 0:00:05.3]} 63. Qd8+ {[%clk 0:00:01.9]} 63...
Kc4 {[%clk 0:00:05.6]} 64. Qc7+ {[%clk 0:00:01.4]} 64... Kd3 {[%clk 0:00:06.2]}
65. Qe5 {[%clk 0:00:01.7]} 65... Qh7 {[%clk 0:00:03.8]} 66. Kf3 {[%clk
0:00:02.1]} 66... Qh3+ {[%clk 0:00:03.6]} 67. Kf2 {[%clk 0:00:02.7]} 67... Qh2+
{[%clk 0:00:04.3]} 68. Kf3 {[%clk 0:00:03.2]} 68... Qh1+ {[%clk 0:00:04.9]} 69.
Kg4 {[%clk 0:00:03.7]} 69... Qg2+ {[%clk 0:00:05.3]} 70. Kf5 {[%clk 0:00:04.6]}
70... Qh3+ {[%clk 0:00:05.5]} 71. Kf6 {[%clk 0:00:05]} 71... Qh8+ {[%clk
0:00:05.9]} 72. Ke6 {[%clk 0:00:05.2]} 72... Qe8+ {[%clk 0:00:06.3]} 73. Kd5
{[%clk 0:00:05.7]} 73... Qd7+ {[%clk 0:00:06.2]} 74. Qd6 {[%clk 0:00:05.8]}
74... Qf5+ {[%clk 0:00:06]} 75. Qe5 {[%clk 0:00:06.2]} 75... Qf7+ {[%clk
0:00:06.2]} 76. Kd6 {[%clk 0:00:05.9]} 76... Kc4 {[%clk 0:00:05.8]} 77. Qc5+
{[%clk 0:00:05.6]} 77... Kd3 {[%clk 0:00:05.4]} 78. f5 {[%clk 0:00:06.2]} 78...
Qf6+ {[%clk 0:00:04.2]} 79. Kd7 {[%clk 0:00:06]} 79... Ke4 {[%clk 0:00:04.9]}
80. Qc4 {[%clk 0:00:03.1]} 80... Qxf5+ {[%clk 0:00:05]} 81. Kd6 {[%clk
0:00:03.7]} 81... Qe5+ {[%clk 0:00:05.4]} 82. Kc6 {[%clk 0:00:04.2]} 82... Ke3
{[%clk 0:00:05.9]} 83. Qc1+ {[%clk 0:00:04.2]} 83... Kd3 {[%clk 0:00:05.1]} 84.
Qd1+ {[%clk 0:00:04.3]} 84... Kc3 {[%clk 0:00:05.3]} 85. Qc1+ {[%clk 0:00:04.7]}
85... Kd3 {[%clk 0:00:05.9]} 86. Qd1+ {[%clk 0:00:05.1]} 86... Ke3 {[%clk
0:00:06.5]} 87. Qe1+ {[%clk 0:00:05.1]} 87... Kf4 {[%clk 0:00:07.2]} 88. Qh4+
{[%clk 0:00:05.5]} 88... Kf3 {[%clk 0:00:05.8]} 89. Qh1+ {[%clk 0:00:04.4]}
89... Kf2 {[%clk 0:00:06.2]} 90. Qh4+ {[%clk 0:00:04.2]} 90... Ke2 {[%clk
0:00:06.7]} 91. Qg4+ {[%clk 0:00:04.5]} 91... Kd2 {[%clk 0:00:06.9]} 92. Qg2+
{[%clk 0:00:04.8]} 92... Kc3 {[%clk 0:00:07.4]} 93. Qf1 {[%clk 0:00:03.8]} 93...
Qe4+ {[%clk 0:00:07.2]} 94. Kc5 {[%clk 0:00:03.7]} 94... Qe7+ {[%clk 0:00:07.5]}
95. Kd5 {[%clk 0:00:03.6]} 95... Qd7+ {[%clk 0:00:08.1]} 96. Kc5 {[%clk
0:00:03.9]} 96... Qc7+ {[%clk 0:00:08.6]} 97. Kd5 {[%clk 0:00:04.1]} 97... Qa5+
{[%clk 0:00:09]} 98. Ke4 {[%clk 0:00:03.9]} 98... Qa8+ {[%clk 0:00:08.9]} 99.
Ke5 {[%clk 0:00:04.2]} 99... Qb8+ {[%clk 0:00:09]} 100. Kd5 {[%clk 0:00:05.1]}
100... Qb3+ {[%clk 0:00:09.2]} 101. Kc5 {[%clk 0:00:04.6]} 101... d3 {[%clk
0:00:07.7]} 102. Qf6+ {[%clk 0:00:01.9]} 102... Kc2 {[%clk 0:00:08.2]} 103. Qf5
{[%clk 0:00:02.4]} 103... Qc3+ {[%clk 0:00:08.6]} 104. Kb5 {[%clk 0:00:02.5]}
104... Kb2 {[%clk 0:00:09.5]} 105. Qf2+ {[%clk 0:00:02.2]} 105... d2 {[%clk
0:00:10]} 106. Qe2 {[%clk 0:00:03.1]} 106... Kc1 {[%clk 0:00:10.1]} 107. Qe3
{[%clk 0:00:02.9]} 107... Qxe3 {[%clk 0:00:10.2]} 0-1